[Event "Titled Tuesday Blitz February 21 Early 2023"]
[White "Florescu, Codrut-Constantin"]
[Black "Alhadad, Mahmoud"]
[WhiteFideId "1202200"]
[BlackFideId "11501863"]
[WhiteElo "2259"]
[BlackElo "1840"]
[Result "1-0"]
[Round "08"]
[TimeControl "180+2"]
[Date "2023.02.21"]
[WhiteClock "0:01:31"]
[BlackClock "0:00:01"]

1. e4 {[%clk 0:02:56]}  d5 {[%clk 0:03:00]} 2. exd5 {[%clk 0:02:56]}  Nf6 {[%clk 0:03:01]} 3. d4 {[%clk 0:02:56]}  Bg4 {[%clk 0:03:01]} 4. f3 {[%clk 0:02:55]}  Bf5 {[%clk 0:03:02]} 5. g4 {[%clk 0:02:54]}  Bg6 {[%clk 0:02:56]} 6. c4 {[%clk 0:02:54]}  e6 {[%clk 0:02:54]} 7. g5 {[%clk 0:02:52]}  Nh5 {[%clk 0:02:37]} 8. Nc3 {[%clk 0:02:52]}  c5 {[%clk 0:02:35]} 9. Be3 {[%clk 0:02:48]}  Be7 {[%clk 0:02:19]} 10. dxc5 {[%clk 0:02:42]}  Bxg5 {[%clk 0:02:19]} 11. Qd2 {[%clk 0:02:42]}  Bxe3 {[%clk 0:02:18]} 12. Qxe3 {[%clk 0:02:42]}  Qh4+ {[%clk 0:02:18]} 13. Qf2 {[%clk 0:02:36]}  Qf4 {[%clk 0:01:58]} 14. Nge2 {[%clk 0:02:33]}  Qe5 {[%clk 0:01:53]} 15. Qd4 {[%clk 0:02:29]}  Qg5 {[%clk 0:01:45]} 16. Rg1 {[%clk 0:02:28]}  Qh6 {[%clk 0:01:42]} 17. Qd2 {[%clk 0:02:26]}  Qxd2+ {[%clk 0:01:40]} 18. Kxd2 {[%clk 0:02:27]}  Nd7 {[%clk 0:01:38]} 19. Ne4 {[%clk 0:02:05]}  Bxe4 {[%clk 0:01:23]} 20. fxe4 {[%clk 0:02:05]}  Nxc5 {[%clk 0:01:23]} 21. Nc3 {[%clk 0:02:05]}  exd5 {[%clk 0:01:14]} 22. exd5 {[%clk 0:01:59]}  O-O {[%clk 0:01:06]} 23. b4 {[%clk 0:01:58]}  Nd7 {[%clk 0:01:03]} 24. Bd3 {[%clk 0:01:58]}  Ne5 {[%clk 0:01:01]} 25. Rae1 {[%clk 0:01:56]}  Nf3+ {[%clk 0:01:00]} 26. Ke3 {[%clk 0:01:56]}  Nxe1 {[%clk 0:00:57]} 27. Rxe1 {[%clk 0:01:56]}  Rfe8+ {[%clk 0:00:55]} 28. Kd2 {[%clk 0:01:56]}  Rxe1 {[%clk 0:00:55]} 29. Kxe1 {[%clk 0:01:57]}  Nf4 {[%clk 0:00:48]} 30. Be4 {[%clk 0:01:54]}  a5 {[%clk 0:00:41]} 31. b5 {[%clk 0:01:54]}  Rc8 {[%clk 0:00:36]} 32. d6 {[%clk 0:01:54]}  Rxc4 {[%clk 0:00:35]} 33. d7 {[%clk 0:01:48]}  Ne6 {[%clk 0:00:35]} 34. Kd2 {[%clk 0:01:44]}  Rd4+ {[%clk 0:00:29]} 35. Ke3 {[%clk 0:01:44]}  Rxd7 {[%clk 0:00:29]} 36. Nd5 {[%clk 0:01:45]}  Kf8 {[%clk 0:00:15]} 37. Nb6 {[%clk 0:01:45]}  Re7 {[%clk 0:00:13]} 38. Nd5 {[%clk 0:01:44]}  Rd7 {[%clk 0:00:12]} 39. Nb6 {[%clk 0:01:44]}  Rc7 {[%clk 0:00:11]} 40. Nd5 {[%clk 0:01:44]}  Rc5 {[%clk 0:00:10]} 41. a4 {[%clk 0:01:43]}  f5 {[%clk 0:00:08]} 42. Bf3 {[%clk 0:01:42]}  g5 {[%clk 0:00:06]} 43. Nb6 {[%clk 0:01:42]}  Ke7 {[%clk 0:00:06]} 44. Bxb7 {[%clk 0:01:40]}  Rc3+ {[%clk 0:00:05]} 45. Kd2 {[%clk 0:01:38]}  Rh3 {[%clk 0:00:04]} 46. Nc4 {[%clk 0:01:37]}  Rxh2+ {[%clk 0:00:05]} 47. Kc3 {[%clk 0:01:38]}  Nc5 {[%clk 0:00:05]} 48. Nxa5 {[%clk 0:01:36]}  Nxa4+ {[%clk 0:00:04]} 49. Kd4 {[%clk 0:01:36]}  Rh4+ {[%clk 0:00:02]} 50. Ke5 {[%clk 0:01:35]}  f4 {[%clk 0:00:01]} 51. Nc6+ {[%clk 0:01:31]} 1-0


[Site "https://www.chess.com"]

[Event "Titled Tuesday Blitz February 21 Early 2023"]
[White "Ardila, Oscar Humberto"]
[Black "Shuvalov, Evgenij"]
[WhiteFideId "4404742"]
[BlackFideId "4187237"]
[WhiteElo "1982"]
[BlackElo "2038"]
[Result "0-1"]
[Round "08"]
[TimeControl "180+2"]
[Date "2023.02.21"]
[WhiteClock "0:00:03"]
[BlackClock "0:00:57"]

1. d4 {[%clk 0:03:00]}  Nf6 {[%clk 0:02:59]} 2. c4 {[%clk 0:03:00]}  g6 {[%clk 0:02:59]} 3. Nf3 {[%clk 0:02:59]}  Bg7 {[%clk 0:02:58]} 4. Nc3 {[%clk 0:02:59]}  d5 {[%clk 0:02:59]} 5. e3 {[%clk 0:02:58]}  c5 {[%clk 0:02:58]} 6. Be2 {[%clk 0:02:57]}  Nc6 {[%clk 0:02:57]} 7. O-O {[%clk 0:02:56]}  cxd4 {[%clk 0:02:58]} 8. Nxd4 {[%clk 0:02:56]}  O-O {[%clk 0:02:53]} 9. Nxc6 {[%clk 0:02:55]}  bxc6 {[%clk 0:02:53]} 10. Qa4 {[%clk 0:02:53]}  Qb6 {[%clk 0:02:45]} 11. Qa3 {[%clk 0:02:43]}  Re8 {[%clk 0:02:38]} 12. c5 {[%clk 0:02:42]}  Qc7 {[%clk 0:02:36]} 13. Bd2 {[%clk 0:02:36]}  e5 {[%clk 0:02:31]} 14. Bf3 {[%clk 0:02:15]}  a5 {[%clk 0:02:24]} 15. g3 {[%clk 0:02:13]}  Bf8 {[%clk 0:02:15]} 16. Na4 {[%clk 0:02:04]}  Ba6 {[%clk 0:02:13]} 17. Rfe1 {[%clk 0:02:01]}  Nd7 {[%clk 0:02:12]} 18. Rac1 {[%clk 0:01:59]}  Bb5 {[%clk 0:02:12]} 19. Nc3 {[%clk 0:01:20]}  Bd3 {[%clk 0:02:03]} 20. Na4 {[%clk 0:01:20]}  e4 {[%clk 0:01:59]} 21. Bg2 {[%clk 0:01:09]}  Ne5 {[%clk 0:01:54]} 22. Qc3 {[%clk 0:01:01]}  Bg7 {[%clk 0:01:51]} 23. Qa3 {[%clk 0:00:54]}  Nc4 {[%clk 0:01:44]} 24. Rxc4 {[%clk 0:00:54]}  dxc4 {[%clk 0:01:41]} 25. Nb6 {[%clk 0:00:54]}  Rad8 {[%clk 0:01:40]} 26. Qxa5 {[%clk 0:00:51]}  Bxb2 {[%clk 0:01:34]} 27. Bc3 {[%clk 0:00:51]}  Bxc3 {[%clk 0:01:28]} 28. Qxc3 {[%clk 0:00:51]}  Qe5 {[%clk 0:01:28]} 29. Qb4 {[%clk 0:00:49]}  c3 {[%clk 0:01:25]} 30. Rc1 {[%clk 0:00:47]}  c2 {[%clk 0:01:25]} 31. Qb3 {[%clk 0:00:36]}  Re7 {[%clk 0:01:18]} 32. Na4 {[%clk 0:00:31]}  Ra7 {[%clk 0:01:11]} 33. Bf1 {[%clk 0:00:28]}  Qd5 {[%clk 0:01:05]} 34. Nb2 {[%clk 0:00:11]}  Rxa2 {[%clk 0:01:00]} 35. Qxd5 {[%clk 0:00:10]}  Rxd5 {[%clk 0:01:01]} 36. Nc4 {[%clk 0:00:06]}  Bxc4 {[%clk 0:00:59]} 37. Bxc4 {[%clk 0:00:06]}  Rd1+ {[%clk 0:01:00]} 38. Kg2 {[%clk 0:00:06]}  Rxc1 {[%clk 0:00:59]} 39. Bxa2 {[%clk 0:00:07]}  Ra1 {[%clk 0:00:59]} 40. Bxf7+ {[%clk 0:00:06]}  Kxf7 {[%clk 0:00:59]} 41. h3 {[%clk 0:00:03]}  c1=Q {[%clk 0:00:58]} 42. g4 {[%clk 0:00:03]}  Qg1# {[%clk 0:00:57]} 0-1


[Site "https://www.chess.com"]

[Event "Titled Tuesday Blitz February 21 Early 2023"]
[White "Quirke, Jeffrey"]
[Black "Sarkar, Justin"]
[WhiteFideId "2013029"]
[BlackFideId "2010011"]
[WhiteElo "2007"]
[BlackElo "2309"]
[Result "1-0"]
[Round "08"]
[TimeControl "180+2"]
[Date "2023.02.21"]
[WhiteClock "0:00:13"]
[BlackClock "0:00:01"]

1. e4 {[%clk 0:03:00]}  e5 {[%clk 0:02:56]} 2. Nf3 {[%clk 0:03:00]}  Nc6 {[%clk 0:02:56]} 3. Bb5 {[%clk 0:03:00]}  a6 {[%clk 0:02:55]} 4. Ba4 {[%clk 0:03:00]}  Nf6 {[%clk 0:02:51]} 5. Qe2 {[%clk 0:02:54]}  b5 {[%clk 0:02:27]} 6. Bb3 {[%clk 0:02:53]}  Be7 {[%clk 0:02:24]} 7. c3 {[%clk 0:02:50]}  O-O {[%clk 0:02:14]} 8. O-O {[%clk 0:02:49]}  d6 {[%clk 0:02:05]} 9. a4 {[%clk 0:02:41]}  Bg4 {[%clk 0:01:52]} 10. h3 {[%clk 0:02:31]}  Bh5 {[%clk 0:01:49]} 11. d3 {[%clk 0:02:31]}  Re8 {[%clk 0:01:26]} 12. Nbd2 {[%clk 0:02:28]}  Rb8 {[%clk 0:01:04]} 13. axb5 {[%clk 0:02:27]}  axb5 {[%clk 0:01:03]} 14. Re1 {[%clk 0:02:07]}  d5 {[%clk 0:00:57]} 15. Qf1 {[%clk 0:01:57]}  d4 {[%clk 0:00:47]} 16. cxd4 {[%clk 0:01:28]}  Nxd4 {[%clk 0:00:44]} 17. Nxd4 {[%clk 0:01:28]}  Qxd4 {[%clk 0:00:41]} 18. g4 {[%clk 0:01:27]}  Bg6 {[%clk 0:00:36]} 19. Nf3 {[%clk 0:01:27]}  Qd6 {[%clk 0:00:28]} 20. Be3 {[%clk 0:01:17]}  c5 {[%clk 0:00:24]} 21. Nh4 {[%clk 0:01:06]}  Nd7 {[%clk 0:00:14]} 22. Nf5 {[%clk 0:01:00]}  Bxf5 {[%clk 0:00:13]} 23. gxf5 {[%clk 0:01:01]}  Red8 {[%clk 0:00:09]} 24. Red1 {[%clk 0:00:49]}  Nf6 {[%clk 0:00:08]} 25. Qe2 {[%clk 0:00:32]}  Ra8 {[%clk 0:00:05]} 26. Rac1 {[%clk 0:00:31]}  Rac8 {[%clk 0:00:03]} 27. Kg2 {[%clk 0:00:25]}  g6 {[%clk 0:00:03]} 28. fxg6 {[%clk 0:00:22]}  hxg6 {[%clk 0:00:02]} 29. Qf3 {[%clk 0:00:13]}  Rf8 {[%clk 0:00:01]} 30. Qg3 {[%clk 0:00:13]} 1-0


[Site "https://www.chess.com"]

[Event "Titled Tuesday Blitz February 21 Early 2023"]
[White "Lucassen, Mickey"]
[Black "Thomas, Anysia"]
[WhiteFideId "12919110"]
[BlackFideId "670472"]
[WhiteElo "2023"]
[BlackElo "2147"]
[Result "1-0"]
[Round "08"]
[TimeControl "180+2"]
[Date "2023.02.21"]
[WhiteClock "0:00:34"]
[BlackClock "0:00:18"]

1. e4 {[%clk 0:03:00]}  c5 {[%clk 0:02:59]} 2. Nf3 {[%clk 0:02:59]}  g6 {[%clk 0:03:00]} 3. d4 {[%clk 0:02:59]}  cxd4 {[%clk 0:03:01]} 4. Qxd4 {[%clk 0:02:59]}  Nf6 {[%clk 0:03:01]} 5. Bb5 {[%clk 0:02:58]}  a6 {[%clk 0:02:57]} 6. Qa4 {[%clk 0:02:58]}  axb5 {[%clk 0:01:43]} 7. Qxa8 {[%clk 0:02:57]}  Na6 {[%clk 0:01:43]} 8. Qa7 {[%clk 0:02:29]}  b6 {[%clk 0:01:32]} 9. Be3 {[%clk 0:02:22]}  Nc5 {[%clk 0:01:17]} 10. Nc3 {[%clk 0:02:19]}  Bg7 {[%clk 0:01:10]} 11. O-O {[%clk 0:01:52]}  b4 {[%clk 0:01:05]} 12. Nb5 {[%clk 0:01:46]}  O-O {[%clk 0:01:02]} 13. e5 {[%clk 0:01:36]}  Nfe4 {[%clk 0:00:58]} 14. a3 {[%clk 0:01:16]}  Ba6 {[%clk 0:00:57]} 15. a4 {[%clk 0:00:57]}  Nxa4 {[%clk 0:00:48]} 16. Qxa6 {[%clk 0:00:54]}  Nxb2 {[%clk 0:00:40]} 17. Bxb6 {[%clk 0:00:53]}  Qb8 {[%clk 0:00:34]} 18. Bc7 {[%clk 0:00:51]}  Qe8 {[%clk 0:00:30]} 19. Rab1 {[%clk 0:00:47]}  Nc4 {[%clk 0:00:25]} 20. Rxb4 {[%clk 0:00:47]}  Ncd2 {[%clk 0:00:25]} 21. Nxd2 {[%clk 0:00:46]}  Nxd2 {[%clk 0:00:26]} 22. Rd1 {[%clk 0:00:46]}  Qa8 {[%clk 0:00:19]} 23. Qxa8 {[%clk 0:00:39]}  Rxa8 {[%clk 0:00:20]} 24. h3 {[%clk 0:00:37]}  Bh6 {[%clk 0:00:18]} 25. f4 {[%clk 0:00:34]} 1-0


[Site "https://www.chess.com"]

[Event "Titled Tuesday Blitz February 21 Early 2023"]
[White "lisjakzlatko1"]
[Black "Tsyhanchuk, Stanislav"]
[BlackFideId "13505130"]
[WhiteElo "2162"]
[BlackElo "2273"]
[Result "1-0"]
[Round "08"]
[TimeControl "180+2"]
[Date "2023.02.21"]
[WhiteClock "0:00:40"]
[BlackClock "0:01:14"]

1. e4 {[%clk 0:03:00]}  c5 {[%clk 0:02:42]} 2. b4 {[%clk 0:02:59]}  cxb4 {[%clk 0:02:42]} 3. Bb2 {[%clk 0:02:59]}  d5 {[%clk 0:02:42]} 4. exd5 {[%clk 0:02:58]}  Qxd5 {[%clk 0:02:43]} 5. d4 {[%clk 0:02:58]}  Nf6 {[%clk 0:02:42]} 6. c4 {[%clk 0:02:57]}  bxc3 {[%clk 0:02:41]} 7. Nxc3 {[%clk 0:02:58]}  Qd8 {[%clk 0:02:40]} 8. Bc4 {[%clk 0:02:54]}  e6 {[%clk 0:02:40]} 9. Nf3 {[%clk 0:02:52]}  Nc6 {[%clk 0:02:40]} 10. O-O {[%clk 0:02:52]}  a6 {[%clk 0:02:37]} 11. d5 {[%clk 0:02:40]}  exd5 {[%clk 0:02:35]} 12. Nxd5 {[%clk 0:02:32]}  Nxd5 {[%clk 0:02:33]} 13. Bxd5 {[%clk 0:02:29]}  Be6 {[%clk 0:02:33]} 14. Bxe6 {[%clk 0:02:07]}  fxe6 {[%clk 0:02:34]} 15. Qb3 {[%clk 0:01:48]}  Qd5 {[%clk 0:02:32]} 16. Qxb7 {[%clk 0:01:41]}  Rb8 {[%clk 0:02:29]} 17. Qc7 {[%clk 0:01:32]}  Rxb2 {[%clk 0:02:21]} 18. Rad1 {[%clk 0:01:31]}  Bd6 {[%clk 0:01:58]} 19. Qc8+ {[%clk 0:01:25]}  Kf7 {[%clk 0:01:55]} 20. Qxh8 {[%clk 0:01:24]}  Qc5 {[%clk 0:01:43]} 21. Qxh7 {[%clk 0:01:16]}  Ne7 {[%clk 0:01:36]} 22. h4 {[%clk 0:01:12]}  Nf5 {[%clk 0:01:33]} 23. Ng5+ {[%clk 0:01:02]}  Ke7 {[%clk 0:01:33]} 24. Qg6 {[%clk 0:00:52]}  Re2 {[%clk 0:01:14]} 25. Qf7+ {[%clk 0:00:48]}  Kd8 {[%clk 0:01:14]} 26. Nxe6+ {[%clk 0:00:44]}  Rxe6 {[%clk 0:01:14]} 27. Qxe6 {[%clk 0:00:43]}  Kc7 {[%clk 0:01:14]} 28. Rc1 {[%clk 0:00:40]} 1-0


[Site "https://www.chess.com"]

[Event "Titled Tuesday Blitz February 21 Early 2023"]
[White "mohsengabr2002"]
[Black "babbilator"]
[WhiteElo "2324"]
[BlackElo "2129"]
[Result "1-0"]
[Round "08"]
[TimeControl "180+2"]
[Date "2023.02.21"]
[WhiteClock "0:01:56"]
[BlackClock "0:00:31"]

1. b3 {[%clk 0:02:46]}  Nf6 {[%clk 0:02:49]} 2. e3 {[%clk 0:02:46]}  b6 {[%clk 0:02:48]} 3. a4 {[%clk 0:02:46]}  a5 {[%clk 0:02:37]} 4. Bb2 {[%clk 0:02:45]}  e6 {[%clk 0:02:37]} 5. Qf3 {[%clk 0:02:43]}  d5 {[%clk 0:01:52]} 6. g4 {[%clk 0:02:39]}  h6 {[%clk 0:01:31]} 7. h4 {[%clk 0:02:39]}  Bb7 {[%clk 0:01:28]} 8. Bh3 {[%clk 0:02:34]}  Nbd7 {[%clk 0:01:19]} 9. g5 {[%clk 0:02:33]}  hxg5 {[%clk 0:01:12]} 10. hxg5 {[%clk 0:02:33]}  Ne4 {[%clk 0:01:08]} 11. Bxe6 {[%clk 0:02:33]}  fxe6 {[%clk 0:01:06]} 12. Rxh8 {[%clk 0:02:32]}  Qxg5 {[%clk 0:01:02]} 13. Nh3 {[%clk 0:02:26]}  Qe7 {[%clk 0:00:51]} 14. Ba3 {[%clk 0:02:16]}  c5 {[%clk 0:00:48]} 15. Qh5+ {[%clk 0:02:12]}  Kd8 {[%clk 0:00:43]} 16. Nf4 {[%clk 0:02:10]}  Kc7 {[%clk 0:00:39]} 17. Bb2 {[%clk 0:02:02]}  e5 {[%clk 0:00:36]} 18. Ng6 {[%clk 0:01:59]}  Qf6 {[%clk 0:00:36]} 19. Bxe5+ {[%clk 0:01:57]}  Nxe5 {[%clk 0:00:31]} 20. Qxe5+ {[%clk 0:01:56]} 1-0


[Site "https://www.chess.com"]

[Event "Titled Tuesday Blitz February 21 Early 2023"]
[White "Better_Chess_Faster"]
[Black "Uzcategui Rodriguez, Alejandro"]
[BlackFideId "3903400"]
[WhiteElo "1968"]
[BlackElo "2255"]
[Result "0-1"]
[Round "08"]
[TimeControl "180+2"]
[Date "2023.02.21"]
[WhiteClock "0:00:01"]
[BlackClock "0:01:33"]

1. c4 {[%clk 0:03:00]}  Nf6 {[%clk 0:02:57]} 2. g3 {[%clk 0:03:00]}  e6 {[%clk 0:02:58]} 3. Bg2 {[%clk 0:02:59]}  d5 {[%clk 0:02:56]} 4. Nf3 {[%clk 0:02:59]}  Be7 {[%clk 0:02:53]} 5. d4 {[%clk 0:02:58]}  O-O {[%clk 0:02:50]} 6. O-O {[%clk 0:02:57]}  dxc4 {[%clk 0:02:49]} 7. Qc2 {[%clk 0:02:57]}  a6 {[%clk 0:02:49]} 8. a4 {[%clk 0:02:56]}  Bd7 {[%clk 0:02:49]} 9. Qxc4 {[%clk 0:02:55]}  Bc6 {[%clk 0:02:47]} 10. Bf4 {[%clk 0:02:52]}  Bd6 {[%clk 0:02:46]} 11. Qc1 {[%clk 0:02:51]}  a5 {[%clk 0:02:45]} 12. Nc3 {[%clk 0:02:49]}  Na6 {[%clk 0:02:44]} 13. Re1 {[%clk 0:02:43]}  Nb4 {[%clk 0:02:40]} 14. Qd2 {[%clk 0:02:36]}  Ne4 {[%clk 0:02:37]} 15. Nxe4 {[%clk 0:02:36]}  Bxe4 {[%clk 0:02:38]} 16. Rec1 {[%clk 0:02:27]}  Nd5 {[%clk 0:02:34]} 17. Bxd6 {[%clk 0:02:25]}  cxd6 {[%clk 0:02:32]} 18. Ne1 {[%clk 0:02:21]}  Bxg2 {[%clk 0:02:31]} 19. Kxg2 {[%clk 0:02:20]}  Qb6 {[%clk 0:02:31]} 20. e4 {[%clk 0:02:17]}  Nb4 {[%clk 0:02:22]} 21. Rc3 {[%clk 0:02:11]}  d5 {[%clk 0:02:19]} 22. exd5 {[%clk 0:02:08]}  Nxd5 {[%clk 0:02:20]} 23. Rc5 {[%clk 0:02:04]}  Rfd8 {[%clk 0:02:17]} 24. Nf3 {[%clk 0:01:59]}  h6 {[%clk 0:02:15]} 25. Rac1 {[%clk 0:01:56]}  Nf6 {[%clk 0:02:15]} 26. Qc2 {[%clk 0:01:49]}  g6 {[%clk 0:02:11]} 27. h4 {[%clk 0:01:48]}  Rd7 {[%clk 0:02:04]} 28. Rd1 {[%clk 0:01:40]}  Rad8 {[%clk 0:02:02]} 29. b3 {[%clk 0:01:33]}  Rd5 {[%clk 0:02:00]} 30. Rc7 {[%clk 0:01:29]}  R8d7 {[%clk 0:02:00]} 31. Rxd7 {[%clk 0:01:22]}  Rxd7 {[%clk 0:01:59]} 32. Ne5 {[%clk 0:01:03]}  Rc7 {[%clk 0:01:57]} 33. Qd3 {[%clk 0:00:53]}  Nd5 {[%clk 0:01:56]} 34. h5 {[%clk 0:00:37]}  Rc3 {[%clk 0:01:48]} 35. Qe4 {[%clk 0:00:36]}  g5 {[%clk 0:01:43]} 36. Ng4 {[%clk 0:00:34]}  Kg7 {[%clk 0:01:39]} 37. Qe5+ {[%clk 0:00:32]}  f6 {[%clk 0:01:39]} 38. Qe4 {[%clk 0:00:22]}  Qc6 {[%clk 0:01:36]} 39. Qg6+ {[%clk 0:00:21]}  Kf8 {[%clk 0:01:35]} 40. Qxh6+ {[%clk 0:00:21]}  Ke7 {[%clk 0:01:35]} 41. Qg7+ {[%clk 0:00:21]}  Kd6 {[%clk 0:01:35]} 42. h6 {[%clk 0:00:20]}  Nf4+ {[%clk 0:01:34]} 43. Kf1 {[%clk 0:00:01]}  Qg2+ {[%clk 0:01:33]} 0-1


[Site "https://www.chess.com"]

[Event "Titled Tuesday Blitz February 21 Early 2023"]
[White "Kotepalli, Sai Nirupama"]
[Black "Castillo Pena, Patricia Evarista"]
[WhiteFideId "5039444"]
[BlackFideId "6412106"]
[WhiteElo "1910"]
[BlackElo "1783"]
[Result "1-0"]
[Round "08"]
[TimeControl "180+2"]
[Date "2023.02.21"]
[WhiteClock "0:00:32"]
[BlackClock "0:00:01"]

1. e4 {[%clk 0:02:56]}  c5 {[%clk 0:02:59]} 2. Nf3 {[%clk 0:02:56]}  d6 {[%clk 0:02:58]} 3. d3 {[%clk 0:02:56]}  Nf6 {[%clk 0:02:57]} 4. g3 {[%clk 0:02:56]}  g6 {[%clk 0:02:57]} 5. Bg2 {[%clk 0:02:56]}  Bg7 {[%clk 0:02:57]} 6. O-O {[%clk 0:02:56]}  O-O {[%clk 0:02:57]} 7. c3 {[%clk 0:02:55]}  Nc6 {[%clk 0:02:57]} 8. Qe2 {[%clk 0:02:52]}  Rb8 {[%clk 0:02:57]} 9. Nbd2 {[%clk 0:02:52]}  b5 {[%clk 0:02:56]} 10. a3 {[%clk 0:02:51]}  a5 {[%clk 0:02:56]} 11. h4 {[%clk 0:02:50]}  b4 {[%clk 0:02:55]} 12. axb4 {[%clk 0:02:50]}  axb4 {[%clk 0:02:55]} 13. Nc4 {[%clk 0:02:50]}  Be6 {[%clk 0:02:44]} 14. e5 {[%clk 0:02:43]}  dxe5 {[%clk 0:02:22]} 15. Ncxe5 {[%clk 0:02:42]}  Nxe5 {[%clk 0:02:21]} 16. Nxe5 {[%clk 0:02:43]}  Qb6 {[%clk 0:02:00]} 17. Bf4 {[%clk 0:02:31]}  Rbd8 {[%clk 0:01:57]} 18. cxb4 {[%clk 0:02:26]}  Nd5 {[%clk 0:01:33]} 19. bxc5 {[%clk 0:02:23]}  Nxf4 {[%clk 0:01:27]} 20. gxf4 {[%clk 0:02:19]}  Qxc5 {[%clk 0:01:26]} 21. Rfc1 {[%clk 0:02:18]}  Qd4 {[%clk 0:01:22]} 22. Nc6 {[%clk 0:02:13]}  Qxf4 {[%clk 0:00:59]} 23. Nxd8 {[%clk 0:02:08]}  Rxd8 {[%clk 0:00:59]} 24. Rc2 {[%clk 0:01:56]}  Be5 {[%clk 0:00:54]} 25. Qf3 {[%clk 0:01:46]}  Qh2+ {[%clk 0:00:44]} 26. Kf1 {[%clk 0:01:46]}  h5 {[%clk 0:00:17]} 27. Ra7 {[%clk 0:01:33]}  Qxh4 {[%clk 0:00:14]} 28. Ke1 {[%clk 0:01:27]}  Bg4 {[%clk 0:00:12]} 29. Qe4 {[%clk 0:01:23]}  Bf6 {[%clk 0:00:12]} 30. Bf3 {[%clk 0:01:14]}  Qh2 {[%clk 0:00:12]} 31. Bxg4 {[%clk 0:01:12]}  Qg1+ {[%clk 0:00:11]} 32. Ke2 {[%clk 0:01:07]}  hxg4 {[%clk 0:00:11]} 33. Ra8 {[%clk 0:01:04]}  Rxa8 {[%clk 0:00:10]} 34. Qxa8+ {[%clk 0:01:05]}  Kg7 {[%clk 0:00:10]} 35. Qe4 {[%clk 0:00:59]}  g3 {[%clk 0:00:09]} 36. fxg3 {[%clk 0:00:59]}  Qxg3 {[%clk 0:00:09]} 37. Qf3 {[%clk 0:00:54]}  Qh2+ {[%clk 0:00:09]} 38. Kd1 {[%clk 0:00:52]}  Qg1+ {[%clk 0:00:09]} 39. Kd2 {[%clk 0:00:51]}  Bg5+ {[%clk 0:00:09]} 40. Kc3 {[%clk 0:00:48]}  Qc5+ {[%clk 0:00:09]} 41. Kb3 {[%clk 0:00:47]}  Qb5+ {[%clk 0:00:09]} 42. Ka2 {[%clk 0:00:47]}  Qa4+ {[%clk 0:00:08]} 43. Kb1 {[%clk 0:00:46]}  Bf6 {[%clk 0:00:06]} 44. Qe4 {[%clk 0:00:42]}  Qd7 {[%clk 0:00:03]} 45. Rc4 {[%clk 0:00:39]}  Qh3 {[%clk 0:00:03]} 46. Qe2 {[%clk 0:00:35]}  Qh1+ {[%clk 0:00:02]} 47. Kc2 {[%clk 0:00:34]}  Qb7 {[%clk 0:00:01]} 48. d4 {[%clk 0:00:32]} 1-0


[Site "https://www.chess.com"]

[Event "Titled Tuesday Blitz February 21 Early 2023"]
[White "Dias, Joao Batista"]
[Black "Ciuffoletti, Paolo"]
[WhiteFideId "2108240"]
[BlackFideId "807630"]
[WhiteElo "1796"]
[BlackElo "2106"]
[Result "1-0"]
[Round "08"]
[TimeControl "180+2"]
[Date "2023.02.21"]
[WhiteClock "0:01:04"]
[BlackClock "0:00:03"]

1. e4 {[%clk 0:02:54]}  c5 {[%clk 0:02:58]} 2. Nf3 {[%clk 0:02:52]}  Nc6 {[%clk 0:02:58]} 3. Bb5 {[%clk 0:02:49]}  e6 {[%clk 0:02:57]} 4. h3 {[%clk 0:02:49]}  Nge7 {[%clk 0:02:56]} 5. O-O {[%clk 0:02:47]}  a6 {[%clk 0:02:50]} 6. Be2 {[%clk 0:02:43]}  Ng6 {[%clk 0:02:48]} 7. c3 {[%clk 0:02:43]}  d5 {[%clk 0:02:46]} 8. d3 {[%clk 0:02:41]}  Be7 {[%clk 0:02:43]} 9. Na3 {[%clk 0:02:37]}  O-O {[%clk 0:02:41]} 10. Nc2 {[%clk 0:02:37]}  b5 {[%clk 0:02:38]} 11. a3 {[%clk 0:02:36]}  Bb7 {[%clk 0:02:24]} 12. Be3 {[%clk 0:02:25]}  Qc7 {[%clk 0:02:10]} 13. Rc1 {[%clk 0:02:24]}  Rad8 {[%clk 0:02:05]} 14. Qe1 {[%clk 0:02:20]}  f5 {[%clk 0:01:55]} 15. exf5 {[%clk 0:02:20]}  exf5 {[%clk 0:01:54]} 16. Bg5 {[%clk 0:02:16]}  Bxg5 {[%clk 0:01:47]} 17. Nxg5 {[%clk 0:02:15]}  Rde8 {[%clk 0:01:46]} 18. Qd2 {[%clk 0:02:14]}  Qf4 {[%clk 0:01:22]} 19. Rcd1 {[%clk 0:01:57]}  Rxe2 {[%clk 0:01:12]} 20. Qxe2 {[%clk 0:01:54]}  Qxg5 {[%clk 0:01:12]} 21. Qe6+ {[%clk 0:01:52]}  Kh8 {[%clk 0:01:11]} 22. Qd7 {[%clk 0:01:51]}  Ba8 {[%clk 0:00:50]} 23. Kh2 {[%clk 0:01:42]}  d4 {[%clk 0:00:41]} 24. f4 {[%clk 0:01:35]}  Nxf4 {[%clk 0:00:36]} 25. Rf2 {[%clk 0:01:34]}  Nh5 {[%clk 0:00:25]} 26. Qd6 {[%clk 0:01:31]}  Rd8 {[%clk 0:00:23]} 27. Qc7 {[%clk 0:01:28]}  Qg3+ {[%clk 0:00:22]} 28. Qxg3 {[%clk 0:01:27]}  Nxg3 {[%clk 0:00:20]} 29. Kxg3 {[%clk 0:01:27]}  dxc3 {[%clk 0:00:20]} 30. bxc3 {[%clk 0:01:27]}  Kg8 {[%clk 0:00:19]} 31. Rxf5 {[%clk 0:01:27]}  Na5 {[%clk 0:00:15]} 32. Rxc5 {[%clk 0:01:24]}  Re8 {[%clk 0:00:12]} 33. Rc7 {[%clk 0:01:22]}  Re2 {[%clk 0:00:11]} 34. Nd4 {[%clk 0:01:20]}  Rxg2+ {[%clk 0:00:10]} 35. Kf4 {[%clk 0:01:20]}  Rf2+ {[%clk 0:00:10]} 36. Ke3 {[%clk 0:01:18]}  Rf8 {[%clk 0:00:08]} 37. Rg1 {[%clk 0:01:17]}  Re8+ {[%clk 0:00:07]} 38. Kf4 {[%clk 0:01:15]}  g6 {[%clk 0:00:07]} 39. h4 {[%clk 0:01:12]}  Bd5 {[%clk 0:00:07]} 40. h5 {[%clk 0:01:12]}  Bf7 {[%clk 0:00:07]} 41. hxg6 {[%clk 0:01:12]}  hxg6 {[%clk 0:00:06]} 42. Nf5 {[%clk 0:01:10]}  Kf8 {[%clk 0:00:05]} 43. Nd6 {[%clk 0:01:10]}  Re6 {[%clk 0:00:04]} 44. Rxf7+ {[%clk 0:01:08]}  Kg8 {[%clk 0:00:04]} 45. Rd7 {[%clk 0:01:05]}  Rf6+ {[%clk 0:00:03]} 46. Ke5 {[%clk 0:01:04]} 1-0


[Site "https://www.chess.com"]